Cogmind - Beta 13 @@@ ROGUE MODE // 2024.04.27 @ 17:13:12 Player: Lunace Result: Destroyed by H-55 Commando with Assault Rifle Performance ------------- Evolutions (3) 1500 Regions Visited (6) 1200 Robots Destroyed (70) 350 Value Destroyed (1851) 1851 Prototype IDs (7) 140 Alien Tech Used (0) 0 Bonus (161) 161 TOTAL SCORE: 5202 Bonus ------- High Alert Combat Kills 101 Follower Combat Kills 153 Friendly Fire -93 Cogmind --------- Core Integrity 0/700 Matter 167/300 Energy 15/100 System Corruption 0% Temperature Cool (0) Movement Walking (120) Location -7/Factory Parts ------- > --- POWER (1) -------- (None) > --- PROPULSION (4) --- Enhanced Armored Leg Improved Cesium-ion Thruster > --- UTILITY (6) ------ Medium Storage Unit Improved Signal Interpreter Transport Network Coupler Launcher Guidance Computer Corruption Screen > --- WEAPON (2) ------- (None) > --- INVENTORY (10) --- Xenon Bombardment Thruster Xenon Bombardment Thruster Precision Matter Filter Advanced ECM Suite Long-range Tractor Beam Recalibrator Heavy Flail Peak State ------------ > --- POWER ------------ Light Nuclear Core > --- PROPULSION ------- Improved Cesium-ion Thruster Improved Cesium-ion Thruster Improved Cesium-ion Thruster Improved Cesium-ion Thruster > --- UTILITY ---------- Medium Storage Unit Improved Signal Interpreter Transport Network Coupler Launcher Guidance Computer Layered Light Armor Plating Corruption Screen > --- WEAPON ----------- Gauss Rifle Heavy Missile Launcher > --- INVENTORY -------- Xenon Bombardment Thruster Xenon Bombardment Thruster Advanced ECM Suite Long-range Tractor Beam Recalibrator Gauss Rifle Heavy Flail [Rating: 50] Favorites ----------- Power Ion Engine Engine Ion Engine Power Core Light Nuclear Core Propulsion Aluminum Leg Leg Aluminum Leg Flight Unit Improved Cesium-ion Thruster Utility Signal Interpreter Device Seismic Detector Storage Medium Storage Unit Processor Signal Interpreter Protection Light Armor Plating Weapon Assault Rifle Energy Cannon Neutron Cannon Ballistic Gun Assault Rifle Ballistic Cannon Assault Cannon Launcher Grenade Launcher Impact Weapon Heavy Flail Build | -11 -10 -10 -10 -9 -8 -7 ------- Run | Yrd Mat Min Exi Min Mat Fac Slots Evolved 6 | . . . . . 4 2 Power . | . . . . . . . Propulsion 2 | . . . . . 2 . Utility 4 | . . . . . 2 2 Weapon . | . . . . . . . Parts Attached 77 | 6 11 2 . . 17 41 Power 14 | 1 1 . . . 3 9 Engine 7 | 1 1 . . . 2 3 Core 7 | . . . . . 1 6 Reactor . | . . . . . . . Propulsion 22 | 2 3 2 . . 6 9 Treads . | . . . . . . . Leg 18 | 2 3 2 . . 6 5 Wheel . | . . . . . . . Hover . | . . . . . . . Flight 4 | . . . . . . 4 Utility 20 | 1 4 . . . 5 10 Device 3 | . 1 . . . . 2 Storage 4 | 1 1 . . . 1 1 Processor 6 | . 1 . . . . 5 Hackware . | . . . . . . . Protection 7 | . 1 . . . 4 2 Artifact . | . . . . . . . Weapon 21 | 2 3 . . . 3 13 Energy Gun . | . . . . . . . Energy Cannon 1 | . . . . . . 1 Ballistic Gun 10 | 2 2 . . . 3 3 Ballistic Cannon 1 | . . . . . . 1 Launcher 7 | . 1 . . . . 6 Special Weapon . | . . . . . . . Impact Weapon 2 | . . . . . . 2 Slashing Weapon . | . . . . . . . Piercing Weapon . | . . . . . . . Special Melee Weapon . | . . . . . . . Unidentified Prototypes 5 | . . . . . . 5 Parts Lost 18 | . 1 . . . . 17 Power 4 | . 1 . . . . 3 Propulsion 6 | . . . . . . 6 Utility 4 | . . . . . . 4 Weapon 4 | . . . . . . 4 Highest Loss Streak 11 | . 1 . . . . 11 To Critical Strikes . | . . . . . . . Average Slot Usage (%) 96 | . 95 100 100 100 97 92 Engine 7 | . 13 14 14 14 4 . Core 2 | . . . . . 4 6 Leg 24 | . 28 28 28 28 36 15 Flight 4 | . . . . . . 13 Device 2 | . 9 . . . . 1 Storage 10 | . 14 14 14 14 9 6 Processor 13 | . . 14 14 14 9 23 Protection 4 | . 1 . . . 15 7 Ballistic Gun 13 | . 26 14 14 14 16 3 Launcher 5 | . 1 14 14 14 1 4 Impact Weapon 1 | . . . . . . 2 Naked Turns . | . . . . . . . Heaviest Build 47 | 13 21 20 20 20 38 47 Greatest Support 40 | 20 20 20 20 20 40 40 Greatest Overweight (x) 2 | 2 1 . . . . 1 Average Overweight (x) . | . . . . . . . Largest Inventory Capacity 15 | 8 10 10 10 10 15 15 Average Capacity 11 | 6 8 10 10 10 14 12 Most Carried 15 | 2 10 10 10 10 15 15 Average Carried 9 | 1 6 10 9 10 11 10 Final Capacity 15 | 8 10 10 10 10 15 10 Final Carried 15 | 2 10 10 10 10 15 7 Class Distribution -------------------- 56% | Mutant 29% | Scavenger-Mutant 14% | Sprinter Dominant Class ---------------- Mutant | -10/Materials Mutant | -10/Mines Mutant | -10/Exiles Mutant | -9/Mines Scavenger-Mutant | -8/Materials Scavenger-Mutant | -7/Factory Resources | -11 -10 -10 -10 -9 -8 -7 ----------- Run | Yrd Mat Min Exi Min Mat Fac Matter Collected 1673 | 243 292 146 8 . 255 729 Remotely 237 | . . . . . . 237 Salvage Created 1871 | . 316 139 . . 309 1107 Parts 108 | . 27 9 . . 12 60 Haulers Intercepted 7 | . 2 . . . . 5 Recyclers Shooed 3 | . 2 . . . . 1 Parts Field Recycled 13 | . . . . . . 13 Retrieved Matter 79 | . . . . . . 79 Parts Self-Destructed . | . . . . . . . Prevented . | . . . . . . . Kills | -11 -10 -10 -10 -9 -8 -7 ------- Run | Yrd Mat Min Exi Min Mat Fac Combat Hostiles Destroyed 36 | . 8 3 . . 4 21 Melee 1 | . . . . . . 1 Guns 12 | . 5 . . . 4 3 Cannons 1 | . . . . . . 1 AOE 22 | . 3 3 . . . 16 Classes Destroyed 15 | . 7 1 . . 3 4 Worker 9 | . 3 . . . . 6 Builder 3 | . . . . . . 3 Tunneler 2 | . . 2 . . . . Hauler 7 | . 2 . . . . 5 Recycler 4 | . . . . . 2 2 Mechanic 1 | . 1 . . . . . Operator 2 | . 1 . . . . 1 Watcher 6 | . 3 . . . . 3 Swarmer 7 | . 6 . . . . 1 Grunt 15 | . 2 3 . . 1 9 Brawler 2 | . . . . . 1 1 Protector 1 | . . . . . . 1 Sentry 3 | . . . . . 2 1 Hunter 4 | . . . . . . 4 Programmer 4 | . . . . . . 4 Best Kill Streak 9 | . 6 3 . . 3 9 Combat Bots Only 6 | . 3 2 . . 1 6 Max Kills in Single Turn 6 | . 6 2 . . 1 4 Gunslinging . | . . . . . . . Exploded 4 | . 3 1 . . . 4 Melee 1 | . . . . . . 1 Uniques/NPCs Destroyed . | . . . . . . . Combat | -11 -10 -10 -10 -9 -8 -7 -------- Run | Yrd Mat Min Exi Min Mat Fac Hostile Shots Fired 406 | . 35 11 . . 29 331 Missed 154 | . 12 4 . . 5 133 Damage Taken 3958 | . 314 144 . . 364 3136 Core 891 | . 108 30 . . 45 708 Absorbed by Shields . | . . . . . . . Core Remaining (%) 78 | 100 . . . 44 91 . Volleys Fired 137 | . 47 7 . . 20 63 Largest 2 | . 2 2 . . 2 2 Hottest 90 | . 50 50 . . 45 90 Shots Fired 249 | . 93 13 . . 40 103 Gun 186 | . 91 7 . . 40 48 Cannon 33 | . . . . . . 33 Launcher 30 | . 2 6 . . . 22 Special . | . . . . . . . Kinetic 218 | . 91 7 . . 40 80 Thermal 1 | . . . . . . 1 Explosive 30 | . 2 6 . . . 22 Electromagnetic . | . . . . . . . Robot Hit Streak 12 | . 9 2 . . 12 12 Robot Miss Streak 7 | . 7 2 . . 4 6 Penetration Max 1 | . . . . . . 1 Secondary Targets . | . . . . . . . Shots Hit Robots 151 | . 43 5 . . 26 77 Core Hits 136 | . 23 9 . . 13 91 Critical Kills . | . . . . . . . Critical Parts Destroyed 3 | . 1 . . . . 2 Critical Strikes 4 | . 1 . . . . 3 Destroy 1 | . 1 . . . . . Blast 1 | . . . . . . 1 Smash 2 | . . . . . . 2 Melee Attacks 16 | . . . . . . 16 Impact 16 | . . . . . . 16 Slashing . | . . . . . . . Piercing . | . . . . . . . Sneak Attacks 3 | . . . . . . 3 Combat Hostiles . | . . . . . . . Follow-up Attacks . | . . . . . . . Damage Inflicted 6413 | . 1128 424 . . 422 4439 Guns 1618 | . 523 43 . . 422 630 Cannons 517 | . . . . . . 517 Explosions 3753 | . 605 381 . . . 2767 Melee 525 | . . . . . . 525 Ramming . | . . . . . . . Kinetic 2098 | . 523 43 . . 422 1110 Thermal 379 | . . 69 . . . 310 Explosive 3303 | . 605 312 . . . 2386 Electromagnetic 108 | . . . . . . 108 Impact 525 | . . . . . . 525 Slashing . | . . . . . . . Piercing . | . . . . . . . Highest Corruption . | . . . . . . . Average Corruption . | . . . . . . . Corruption Purged . | . . . . . . . Corruption Blocked 2 | . . . . . . 2 Overload Shots . | . . . . . . . Overflow Damage 467 | . 138 . . . . 329 Projectiles . | . . . . . . . Explosions 143 | . 138 . . . . 5 Melee 324 | . . . . . . 324 Knockbacks 2 | . . . . . . 2 Impact 2 | . . . . . . 2 Kinetic . | . . . . . . . Secondary . | . . . . . . . Self-Inflicted Damage 182 | . 48 55 . . . 79 Shots 7 | . 1 2 . . . 4 Rammed . | . . . . . . . Targets Rammed . | . . . . . . . Kicked . | . . . . . . . Crushed . | . . . . . . . Highest Temperature 162 | . 12 11 . . 24 162 Average Temperature 35 | . 8 6 . . 12 43 Received Heat Transfer 606 | . 18 51 . . 162 375 Siege Activations . | . . . . . . . Robots Corrupted 1 | . . . . . . 1 Combat Hostiles . | . . . . . . . Parts Fried 5 | . . . . . . 5 Impact Corruptions 12 | . . . . . . 12 Robots Melted . | . . . . . . . Combat Hostiles . | . . . . . . . Parts Melted . | . . . . . . . Heat Transferred 300 | . . 100 . . . 200 Parts Sabotaged . | . . . . . . . Parts Stolen . | . . . . . . . Parts Stripped . | . . . . . . . Power Chain Reactions 1 | . . . . . . 1 Alert | -11 -10 -10 -10 -9 -8 -7 ------- Run | Yrd Mat Min Exi Min Mat Fac Peak Influence 699 | . 240 265 . . 269 699 Initial 78 | . . 78 . . . 30 Average 147 | . 122 210 . . 86 192 Maximum Alert Level 2 | . 1 1 . . 1 2 Low Security (%) 74 | 100 82 30 . 100 92 74 Level 1 20 | . 17 69 . . 7 9 Level 2 5 | . . . . . . 15 Level 3 . | . . . . . . . Level 4 . | . . . . . . . Level 5 . | . . . . . . . High Security . | . . . . . . . Max Security . | . . . . . . . Squads Dispatched 9 | . 1 . . . 1 7 Investigation 1 | . . . . . 1 . Extermination 1 | . . . . . . 1 Reinforcement 7 | . 1 . . . . 6 Assault . | . . . . . . . Garrison . | . . . . . . . Intercept . | . . . . . . . Searches Triggered . | . . . . . . . Construction Impeded 2 | . . . . . . 2 Haulers Reinforced 3 | . . . . . . 3 Active Scanning Responses . | . . . . . . . Cargo Convoy Interrupts 1 | . . . . . . 1 Stealth | -11 -10 -10 -10 -9 -8 -7 --------- Run | Yrd Mat Min Exi Min Mat Fac Distress Signals 6 | . 2 . . . . 4 Communications Jammed . | . . . . . . . Distress Signals . | . . . . . . . Times Spotted 72 | . 20 5 . . 8 39 Peak Tracking Total 14 | . 4 2 . . 3 14 Tactical Retreats 4 | . 1 . . . 1 2 Traps | -11 -10 -10 -10 -9 -8 -7 ------- Run | Yrd Mat Min Exi Min Mat Fac Traps Triggered 5 | . 2 . . . . 3 Indirectly 3 | . . . . . . 3 Trap Hack Attempts . | . . . . . . . Triggered . | . . . . . . . Disarmed . | . . . . . . . Reprogrammed . | . . . . . . . Reused . | . . . . . . . Traps Extracted . | . . . . . . . Installed . | . . . . . . . Triggered 2 | . . . . . . 2 Machines | -11 -10 -10 -10 -9 -8 -7 ---------- Run | Yrd Mat Min Exi Min Mat Fac Machines Disabled 11 | . 2 1 . . . 8 Max in Single Turn 4 | . 2 1 . . . 4 Machines Repaired . | . . . . . . . Machines Dismantled . | . . . . . . . Machines Sabotaged . | . . . . . . . Overloaded Fab Kills . | . . . . . . . Hacking | -11 -10 -10 -10 -9 -8 -7 --------- Run | Yrd Mat Min Exi Min Mat Fac Machines Accessed 21 | . 4 . 1 . 4 12 Terminals 12 | . 4 . . . 4 4 Fabricators 2 | . . . . . . 2 Repair Stations . | . . . . . . . Recycling Units 3 | . . . . . . 3 Scanalyzers 1 | . . . . . . 1 Garrison Access 2 | . . . . . . 2 Total Hacks 56 | . 18 . 1 . 16 21 Successful 23 | . 6 . 1 . 7 9 Failed 31 | . 11 . . . 8 12 Catastrophic 6 | . 2 . . . . 4 Database Lockouts 2 | . 1 . . . 1 . Manual 48 | . 17 . . . 15 16 Terminals 41 | . 18 . . . 16 7 Fabricators 4 | . . . . . . 4 Repair Stations . | . . . . . . . Recycling Units 4 | . . . . . . 4 Scanalyzers 2 | . . . . . . 2 Garrison Access 4 | . . . . . . 4 Terminal Hacks 8 | . 4 . 1 . 3 . Record 1 | . . . 1 . . . Robot Analysis 3 | . 3 . . . . . Prototype ID Bank 1 | . . . . . 1 . Recall Investigation 1 | . . . . . 1 . Zone Layout 2 | . 1 . . . 1 . Fabricator Hacks 1 | . . . . . . 1 Network Status 1 | . . . . . . 1 Repair Station Hacks . | . . . . . . . Recycling Unit Hacks . | . . . . . . . Scanalyzer . | . . . . . . . Garrison Access Hacks . | . . . . . . . Unauthorized Hacks 14 | . 2 . . . 4 8 Terminals 9 | . 2 . . . 4 3 Botnet 7 | . 2 . . . 3 2 Disrupt 1 | . . . . . . 1 Operators 1 | . . . . . 1 . Fabricators 2 | . . . . . . 2 Report 1 | . . . . . . 1 Haulers 1 | . . . . . . 1 Repair Stations . | . . . . . . . Recycling Units 2 | . . . . . . 2 Recyclers 1 | . . . . . . 1 Mask 1 | . . . . . . 1 Scanalyzers . | . . . . . . . Garrison Access 1 | . . . . . . 1 Watchers 1 | . . . . . . 1 Data Cores Recovered . | . . . . . . . Used . | . . . . . . . Hacking Detections 20 | . 4 . . . 4 12 Full Trace Events 1 | . . . . . 1 . Feedback Events . | . . . . . . . Feedback Blocked . | . . . . . . . Robot Schematics Acquired . | . . . . . . . Robots Built . | . . . . . . . Authchips . | . . . . . . . Time . | . . . . . . . Total Robot Build Rating . | . . . . . . . Part Schematics Acquired . | . . . . . . . Parts Built . | . . . . . . . Authchips . | . . . . . . . Time . | . . . . . . . Total Part Build Rating . | . . . . . . . Parts Repaired . | . . . . . . . Time . | . . . . . . . Parts Recycled . | . . . . . . . Recycled Matter . | . . . . . . . Retrieved Matter . | . . . . . . . Retrieved Components . | . . . . . . . Parts Scanalyzed . | . . . . . . . Part Schematics Acquired . | . . . . . . . Parts Damaged . | . . . . . . . Bothacking | -11 -10 -10 -10 -9 -8 -7 ------------ Run | Yrd Mat Min Exi Min Mat Fac Used RIF Installer . | . . . . . . . Robots Hacked . | . . . . . . . Non-combat . | . . . . . . . Combat . | . . . . . . . Robot Hacks Applied . | . . . . . . . Relay Couplers Released . | . . . . . . . Fabnet Peak Effective % . | . . . . . . . Robots Rewired . | . . . . . . . Allies Hacked . | . . . . . . . Hacks Repelled . | . . . . . . . Allies | -11 -10 -10 -10 -9 -8 -7 -------- Run | Yrd Mat Min Exi Min Mat Fac Total Allies 5 | . . 2 . 3 . . Largest Group 3 | . . 2 2 3 3 . Highest-Rated Group 41 | . . 41 41 40 40 . Highest-Rated Ally 31 | . . 31 31 16 16 . Total Orders . | . . . . . . . Ally Attacks 33 | . . 7 . . 26 . Total Damage 401 | . . 106 . . 295 . Kills 5 | . . 2 . . 3 . Allies Corrupted . | . . . . . . . Allies Melted . | . . . . . . . Intel | -11 -10 -10 -10 -9 -8 -7 ------- Run | Yrd Mat Min Exi Min Mat Fac Robot Analysis Total 3 | . 3 . . . . . Derelict Logs Recovered 1 | . . 1 . . . . Drone Launches . | . . . . . . . Drone Recoveries . | . . . . . . . Exploration | -11 -10 -10 -10 -9 -8 -7 ------------- Run | Yrd Mat Min Exi Min Mat Fac Turns Passed 2962 | 55 652 437 239 139 444 996 Spaces Moved 2781 | 39 388 332 197 116 280 1429 Core 5 | 5 . . . . . . Treads . | . . . . . . . Legs 1607 | 34 388 332 197 116 280 260 Wheels . | . . . . . . . Hover . | . . . . . . . Flight 1169 | . . . . . . 1169 Fastest Speed 26 | 50 120 120 120 120 120 26 Average Speed 82 | 113 120 120 120 120 120 46 Slowest Speed 190 | 150 190 120 120 120 120 190 Overloaded Moves . | . . . . . . . Propulsion Burnouts . | . . . . . . . Robots Hopped . | . . . . . . . Cave-ins Triggered . | . . . . . . . Exploration Rate (%) 43 | 4 62 76 57 44 25 34 Regions Visited 6 Branch Regions 3 Pre-discovered Areas 1 | . . . 1 . . . Known Exits Taken 5 | . 1 1 1 1 1 . Unknown Exits Taken 1 | 1 . . . . . . Scrap Searched 1 | . . 1 . . . . Spaces Dug 4 | . . . . . . 4 Terrain Destroyed 136 | . 22 47 . . . 67 Melee 4 | . . . . . . 4 Projectile . | . . . . . . . AOE 132 | . 22 47 . . . 63 Terrain Rammed . | . . . . . . . Walls Destroyed . | . . . . . . . Machines Disabled . | . . . . . . . Actions | -11 -10 -10 -10 -9 -8 -7 --------- Run | Yrd Mat Min Exi Min Mat Fac Total 3193 | 46 486 358 200 116 344 1643 Wait 91 | . 19 16 . 1 17 38 Move 2775 | 38 387 331 196 115 279 1429 Hop . | . . . . . . . Pick Up 37 | 2 12 . 2 . 4 17 Fast Attach 40 | 6 4 . . . 6 24 Attach 12 | . 1 . . . 3 8 Detach 3 | . . . . . . 3 Swap 25 | . 6 2 . . 8 9 Drop 57 | . 10 2 2 . 7 36 Fire 137 | . 47 7 . . 20 63 Melee 16 | . . . . . . 16 Ram . | . . . . . . . Kick . | . . . . . . . Crush . | . . . . . . . Escape Stasis . | . . . . . . . Rewire . | . . . . . . . Trap . | . . . . . . . Miscellaneous . | . . . . . . . Route ------- -11/Scrapyard -10/Materials (discovered 2 exits: *Mat / *Min) -10/Mines (discovered 3 exits: *Mat x2 / *Exi) -10/Exiles -9/Mines -8/Materials -7/Factory (discovered 2 exits: *Low x2) History --------- Turn | Location | Event 4 | -11/Scrapyard | Discovered new exit (range 15) 56 | -11/Scrapyard | Entered Materials 316 | -10/Materials | Build established: Mutant 576 | -10/Materials | Discovered new exit (range 12) 576 | -10/Materials | Central database locked down 694 | -10/Materials | Discovered new exit (range 13) 707 | -10/Materials | Identified exit to Mines 708 | -10/Materials | Entered Mines 717 | -10/Mines | Learned Materials terminal intel 758 | -10/Mines | Excavation squad dispatched 758 | -10/Mines | A large section of the Mines collapsed 798 | -10/Mines | Discovered new exit (range 10) 807 | -10/Mines | Core integrity fell below 50% 862 | -10/Mines | Met a Derelict bent on vengeance 1081 | -10/Mines | Discovered new exit (range 10) 1092 | -10/Mines | Identified exit to Materials 1127 | -10/Mines | Deemed a non-threat by the Exiles lab entrance 1127 | -10/Mines | Discovered new exit (range 5) 1137 | -10/Mines | Identified exit to Exiles 1145 | -10/Mines | Entered Exiles 1145 | -10/Exiles | Accompanied by 2 allies 1174 | -10/Exiles | Met 8R-AWN 1175 | -10/Exiles | Led the pair of lost Derelicts to a safe place 1195 | -10/Exiles | Met EX-HEX 1243 | -10/Exiles | Met EX-DEC 1247 | -10/Exiles | Learned location of Zion (-7) 1370 | -10/Exiles | Discovered new exit (range 12) 1382 | -10/Exiles | Identified exit to Mines 1384 | -10/Exiles | Entered Mines 1417 | -9/Mines | Assisted by bots powering up and referring to "LRC-V3" 1451 | -9/Mines | Assembled infested the area 1456 | -9/Mines | Assisted by a Guerilla fighting off Assembled 1506 | -9/Mines | Discovered new exit (range 15) 1521 | -9/Mines | Identified exit to Materials 1523 | -9/Mines | Entered Materials 1523 | -8/Materials | Accompanied by 3 allies 1523 | -8/Materials | Evolved 4 slots: Propulsion x2, Utility x2 1524 | -8/Materials | Loaded intel: 12 terminal locations 1727 | -8/Materials | Lost 3 allies 1822 | -8/Materials | Central database locked down 1921 | -8/Materials | Build established: Scavenger-Mutant 1931 | -8/Materials | Discovered new exit (range 9) 1966 | -8/Materials | Identified exit to Factory 1967 | -8/Materials | Entered Factory 1967 | -7/Factory | Evolved 2 slots: Utility x2 2379 | -7/Factory | Lost 3 parts (2n1u) 2695 | -7/Factory | Discovered new exit (range 11) 2714 | -7/Factory | Identified exit to Lower Caves 2747 | -7/Factory | Discovered exit to Lower Caves (range 15) 2794 | -7/Factory | Build established: Sprinter 2921 | -7/Factory | Cargo convoy interrupted 2948 | -7/Factory | Core integrity fell below 50% 2959 | -7/Factory | Core integrity fell below 20% 2963 | -7/Factory | Destroyed by H-55 Commando with Assault Rifle Last Messages --------------- 02956_ Slug penetrates I-36 Angel. 02956_ M-13 Machinist repairs H-55 Commando. 02958_ Dropped Neutron Cannon. 02958_ Penetrated by Slug. 02958_ K-01 Serf collects debris. 02958_ Penetrated by Slug. 02958_ U-05 Engineer lays Concrete. 02959_ M-13 Machinist repairs I-36 Angel. 02959_ Imp. Cesium-ion Thruster destroyed. 02959_ U-05 Engineer lays Concrete. 02959_ Acquired Prototype Leg. 02959_ Identified Enh. Armored Leg. 02960_ U-05 Engineer lays Concrete. 02961_ Penetrated by Slug. 02961_ U-05 Engineer lays Concrete. 02962_ K-01 Serf collects debris. 02962_ U-05 Engineer lays Concrete. 02963_ Acquired Prototype Device. 02963_ U-05 Engineer lays Concrete. 02963_ Penetrated by Slug. Map ----- +----------------------------------------------------+ | ??????????# #????????# + """ #?? | | ??????????# = #??####### # ### | | ??????????# #?? ###+###??# ## | | ??????????# ## " " " ### ########## # | | ??????????#########+##### " " " ## | | ????????????????????????# " " " ## | | ????????????????????#???# " " " ## | | ??????????????????? #???# " " " ## ###+##### # | | #########?????????? #???# " " " ## ## # | | # #?????????? #???# " " " ## ## # | | #######+### ##??# " " " ## ## # | | #??# " " " "# #" + | | > #??# %## "# # | | #??##+###;;#; ## # | | ######## ##??# = ## # | | # ! #?????## kk #?# + r # | | ################ # ############ | | ?????????# # ##### #####????????? # | | ?????????# # ^ #????????????# # | | ?????????# # ! #????????????# # | | ##??????## ! # u %!*= #????????????### | | ?? #!! # =!%=! #??????????????# | | #!! # ih g """ #???????????????? | | """" # ""# mhxuu]u Y" #???????????????? | | """" # ""# x* !u """ #???????????????? | | """" # T"# %%[ !!h]@= #???????????????? | | """" # ""# %=k ]um[m%= #???????????????? | | # ""#%*%[ =]!!*| ## #???????????????? | | # #|%= ]!####### #???????????????? | | ######+######/## * *!????# #???????????????? | | ### * #????# #???????????????? | | #?????# #???????????????? | | #?????# #???????????????? | | #?????# #???????????????? | | a #?????# #???????????????? | | #####+#### ###?????# ######??????????? | | ### ##! # #???????# ???? | | *!# ## """ # #########+########??????????? | | [%+| ## """ # + /#??????????? | | ![# ## """ # ##### #??????????? | | |# ## # #???# #??????????? | | " # ## # #???# """ """ #??????????? | | " # ## # ##### """ """ #??????????? | | " # ## "" ""a# + """ """ #??????????? | | " # r+ ""T"" / # +??????????? | | ### ## """ # """ # !!! #??????????? | | ??# ## # """ # !! #??????????? | | ??# ########## """ # !! #??????????? | | ??# #????????# """ # #??????????? | | #####+########???# # #??????????? | +----------------------------------------------------+ Best States ------------- Heat Dissipation 34 Energy Generation 17 Energy Capacity 300 Matter Stores 300 Matter Capacity 300 Sight Range 16 Terrain Scan Density 10 Corruption Block 8 Armor Coverage 300 Propulsion Shielding 33 Evasion (%) 64 Launcher Accuracy 20 Core Analysis 6 Authchip Count 1 Item Schematics ----------------- None Robot Schematics ------------------ None Fabricated ------------ Nothing Alien Tech Used ----------------- None Achievements -------------- None Challenges ------------ None Game ------ Seed AntigravFactoryCleaver Manual? 0 Play Time 00:36:14 Cumulative 128.6 hours Start 2024.04.27 @ 16:36:47 End 2024.04.27 @ 17:13:12 Sessions 1 Manual Loads 0 Difficulty Rogue Special Mode None Game No. 134 Rogue 129 Adventurer 5 Explorer 0 Win Type - Total 3 Types 2/0/0/1/0/0/0/0/0 Lore% 51 Gallery% 67 Achievement% 49 Wizard Run 0 Options --------- Layout 1 ASCII 0 Keyboard 0 Movement Mouse Keybinds 0 Fullscreen 1 Font 24/Terminus Map View 50x35 Zoom Use 0% Tactical HUD 1 Map Filters NONE Filters NONE Steam 1 RUN: 3b8d2f9a-8948-4267-8ad9-3ee0a66ed69e